Cogmind - Beta 11 X8 @@@ ROGUE MODE // 2021.10.31 @ 02:57:58 Player: Buffy Result: Destroyed by G-34 Mercenary with Small Laser Performance ------------- Evolutions (0) 0 Regions Visited (2) 400 Robots Destroyed (23) 115 Value Destroyed (585) 585 Prototype IDs (5) 100 Alien Tech Used (0) 0 Bonus (0) 0 TOTAL SCORE: 1200 Bonus ------- None Cogmind --------- Core Integrity 0/250 Matter 295/300 Energy 65/100 System Corruption 0% Temperature Warm (173) Movement Core (50) Location -10/Mines Parts ------- > --- POWER (1) -------- (None) > --- PROPULSION (2) --- (None) > --- UTILITY (2) ------ Terrain Scan Processor > --- WEAPON (2) ------- Particle Gun > --- INVENTORY (5) ---- Ion Engine Medium Storage Unit Small Matter Pod (50) Rocket Launcher Peak State ------------ > --- POWER ------------ Ion Engine > --- PROPULSION ------- Aluminum Leg Aluminum Leg > --- UTILITY ---------- Improved Terrain Scanner Improved Targeting Computer > --- WEAPON ----------- Particle Gun Assault Rifle > --- INVENTORY -------- Aluminum Leg Aluminum Leg Particle Gun Assault Rifle Light Assault Rifle [Rating: 11] Favorites ----------- Power Ion Engine Engine Ion Engine Propulsion Aluminum Leg Leg Aluminum Leg Utility Improved Targeting Computer Device Improved Terrain Scanner Storage Medium Storage Unit Processor Improved Targeting Computer Weapon Assault Rifle Energy Gun Particle Gun Ballistic Gun Assault Rifle Ballistic Cannon Light Cannon Launcher Rocket Launcher Build | -11 -10 -10 ------- Run | Scr Mat Min Slots Evolved . | . . . Power . | . . . Propulsion . | . . . Utility . | . . . Weapon . | . . . Parts Attached 31 | 6 17 8 Power 4 | 1 3 . Engine 4 | 1 3 . Core . | . . . Reactor . | . . . Propulsion 5 | 2 2 1 Treads . | . . . Leg 5 | 2 2 1 Wheel . | . . . Hover . | . . . Flight . | . . . Utility 7 | 1 4 2 Device 3 | 1 1 1 Storage 2 | . 2 . Processor 2 | . 1 1 Hackware . | . . . Protection . | . . . Artifact . | . . . Weapon 15 | 2 8 5 Energy Gun 7 | . 5 2 Energy Cannon . | . . . Ballistic Gun 3 | 2 1 . Ballistic Cannon 2 | . 1 1 Launcher 3 | . 1 2 Special Weapon . | . . . Impact Weapon . | . . . Slashing Weapon . | . . . Piercing Weapon . | . . . Special Melee Weapon . | . . . Unidentified Prototypes . | . . . Parts Lost 6 | . 1 5 Power . | . . . Propulsion 3 | . . 3 Utility 1 | . . 1 Weapon 2 | . 1 1 Highest Loss Streak 3 | . 1 3 Average Slot Usage (%) 84 | . 99 39 Engine 11 | . 14 3 Leg 22 | . 28 3 Device 8 | . 8 9 Storage 4 | . 4 3 Processor 13 | . 13 12 Energy Gun 11 | . 13 3 Ballistic Gun 9 | . 11 2 Ballistic Cannon 2 | . 2 . Naked Turns 26 | . . 26 Heaviest Build 21 | 8 21 21 Greatest Support 20 | 20 20 20 Greatest Overweight (x) 1 | . 1 1 Average Overweight (x) . | . . . Largest Inventory Capacity 20 | 5 20 10 Average Capacity 6 | 5 6 6 Most Carried 6 | 5 6 6 Average Carried 4 | 1 4 4 Final Capacity 10 | 5 10 5 Final Carried 6 | 4 6 4 Class Distribution -------------------- 100% | Mutant Dominant Class ---------------- Mutant | -10/Materials Mutant | -10/Mines Resources | -11 -10 -10 ----------- Run | Scr Mat Min Matter Collected 959 | 296 443 220 Remotely . | . . . Salvage Created 819 | 48 633 138 Parts 45 | 6 34 5 Haulers Intercepted . | . . . Recyclers Shooed 3 | . 3 . Parts Field Recycled . | . . . Retrieved Matter . | . . . Parts Self-Destructed . | . . . Prevented . | . . . Kills | -11 -10 -10 ------- Run | Scr Mat Min Combat Hostiles Destroyed 27 | 1 13 13 Guns 16 | 1 10 5 Cannons 2 | . 2 . AOE 9 | . 1 8 Classes Destroyed 6 | 2 3 1 Worker 2 | . 2 . Tunneler 1 | 1 . . Recycler 3 | . 3 . Swarmer 3 | . 3 . Grunt 14 | 1 10 3 Assembled 10 | . . 10 Best Kill Streak 10 | 2 5 10 Combat Bots Only 10 | 1 4 10 Max Kills in Single Turn 3 | 1 2 3 Gunslinging . | . . . Exploded 3 | . 1 3 Melee . | . . . Uniques/NPCs Destroyed . | . . . Combat | -11 -10 -10 -------- Run | Scr Mat Min Damage Taken 1046 | 35 557 454 Core 255 | . 143 112 Absorbed by Shields . | . . . Core Remaining (%) 100 | 100 . . Volleys Fired 81 | 6 49 26 Largest 2 | 2 2 2 Hottest 100 | 40 85 100 Shots Fired 142 | 12 93 37 Gun 128 | 12 87 29 Cannon 7 | . 5 2 Launcher 7 | . 1 6 Special . | . . . Kinetic 71 | 12 48 11 Thermal 56 | . 36 20 Explosive 7 | . 1 6 Electromagnetic 8 | . 8 . Robot Hit Streak 20 | 6 13 20 Robot Miss Streak 2 | 1 2 2 Penetration Max . | . . . Secondary Targets 3 | . 2 1 Max Gunslinging Chain 1 | . 1 1 Shots Hit Robots 104 | 9 70 25 Core Hits 56 | 3 30 23 Critical Kills . | . . . Critical Parts Destroyed . | . . . Critical Strikes 5 | . 3 2 Burn 5 | . 3 2 Melee Attacks . | . . . Impact . | . . . Slashing . | . . . Piercing . | . . . Sneak Attacks . | . . . Combat Hostiles . | . . . Follow-up Attacks . | . . . Damage Inflicted 2146 | 115 1160 871 Guns 1324 | 115 917 292 Cannons 105 | . 68 37 Explosions 717 | . 175 542 Melee . | . . . Ramming . | . . . Kinetic 669 | 115 436 118 Thermal 773 | . 562 211 Explosive 626 | . 84 542 Electromagnetic 78 | . 78 . Impact . | . . . Slashing . | . . . Piercing . | . . . Highest Corruption . | . . . Average Corruption . | . . . Corruption Purged . | . . . Overload Shots . | . . . Overflow Damage 35 | . 8 27 Projectiles 3 | . . 3 Explosions 32 | . 8 24 Melee . | . . . Knockbacks 4 | . 2 2 Impact . | . . . Kinetic 3 | . 1 2 Secondary 1 | . 1 . Self-Inflicted Damage 106 | . 40 66 Shots 3 | . 1 2 Rammed . | . . . Targets Rammed 1 | . 1 . Kicked 1 | . 1 . Crushed . | . . . Highest Temperature 312 | . 312 178 Average Temperature 91 | . 97 74 Received Heat Transfer 397 | 18 258 121 Siege Activations . | . . . Robots Corrupted . | . . . Combat Hostiles . | . . . Parts Fried . | . . . Impact Corruptions . | . . . Robots Melted . | . . . Combat Hostiles . | . . . Parts Melted 2 | . 2 . Heat Transferred 2135 | . 1469 666 Parts Sabotaged . | . . . Parts Stolen . | . . . Parts Stripped . | . . . Power Chain Reactions 1 | . 1 . Missiles Intercepted . | . . . Alert | -11 -10 -10 ------- Run | Scr Mat Min Peak Influence 166 | 25 166 45 Initial 16 | . 16 5 Average 56 | 6 73 19 Maximum Alert Level . | . . . Low Security (%) 100 | 100 100 100 Level 1 . | . . . Level 2 . | . . . Level 3 . | . . . Level 4 . | . . . Level 5 . | . . . High Security . | . . . Max Security . | . . . Squads Dispatched 1 | . 1 . Investigation 1 | . 1 . Extermination . | . . . Reinforcement . | . . . Assault . | . . . Garrison . | . . . Intercept . | . . . Construction Impeded . | . . . Haulers Reinforced . | . . . Active Scanning Responses . | . . . Cargo Convoy Interrupts . | . . . Stealth | -11 -10 -10 --------- Run | Scr Mat Min Distress Signals 4 | . 4 . Communications Jammed . | . . . Distress Signals . | . . . Times Spotted 38 | 1 22 15 Peak Tracking Total 8 | 1 6 8 Tactical Retreats 1 | . . 1 Traps | -11 -10 -10 ------- Run | Scr Mat Min Traps Triggered 1 | . 1 . Indirectly . | . . . Trap Hack Attempts . | . . . Triggered . | . . . Disarmed . | . . . Reprogrammed . | . . . Reused . | . . . Traps Extracted . | . . . Installed . | . . . Triggered . | . . . Machines | -11 -10 -10 ---------- Run | Scr Mat Min Machines Disabled . | . . . Max in Single Turn . | . . . Machines Sabotaged . | . . . Garrisons Compromised . | . . . Overloaded Fab Kills . | . . . Hacking | -11 -10 -10 --------- Run | Scr Mat Min Machines Accessed 9 | . 9 . Terminals 7 | . 7 . Fabricators . | . . . Repair Stations . | . . . Recycling Units 2 | . 2 . Scanalyzers . | . . . Garrison Access . | . . . Total Hacks 23 | . 23 . Successful 16 | . 16 . Failed 7 | . 7 . Catastrophic 4 | . 4 . Database Lockouts . | . . . Manual 13 | . 13 . Terminals 16 | . 16 . Fabricators . | . . . Repair Stations . | . . . Recycling Units 7 | . 7 . Scanalyzers . | . . . Garrison Access . | . . . Terminal Hacks 7 | . 7 . Robot Analysis 1 | . 1 . Prototype ID Bank 3 | . 3 . Branch Access Points 1 | . 1 . Alert Level 1 | . 1 . Unreport Threat 1 | . 1 . Fabricator Hacks . | . . . Repair Station Hacks . | . . . Recycling Unit Hacks 7 | . 7 . Process 2 | . 2 . Report Inventory 3 | . 3 . Retrieve Matter 2 | . 2 . Scanalyzer . | . . . Garrison Access Hacks . | . . . Unauthorized Hacks 2 | . 2 . Terminals 2 | . 2 . Track 1 | . 1 . Botnet 1 | . 1 . Fabricators . | . . . Repair Stations . | . . . Recycling Units . | . . . Scanalyzers . | . . . Garrison Access . | . . . Data Cores Recovered . | . . . Used . | . . . Hacking Detections 8 | . 8 . Full Trace Events . | . . . Feedback Events . | . . . Feedback Blocked . | . . . Robot Schematics Acquired . | . . . Robots Built . | . . . Authchips . | . . . Time . | . . . Total Robot Build Rating . | . . . Part Schematics Acquired . | . . . Parts Built . | . . . Authchips . | . . . Time . | . . . Total Part Build Rating . | . . . Parts Repaired . | . . . Time . | . . . Parts Recycled . | . . . Recycled Matter 1 | . 1 . Retrieved Matter 1 | . 1 . Retrieved Components . | . . . Parts Scanalyzed . | . . . Part Schematics Acquired . | . . . Parts Damaged . | . . . Bothacking | -11 -10 -10 ------------ Run | Scr Mat Min Used RIF Installer . | . . . Robots Hacked . | . . . Non-combat . | . . . Combat . | . . . Robot Hacks Applied . | . . . Relay Couplers Released . | . . . Robots Rewired . | . . . Allies Hacked . | . . . Hacks Repelled . | . . . Allies | -11 -10 -10 -------- Run | Scr Mat Min Total Allies . | . . . Largest Group . | . . . Highest-Rated Group . | . . . Highest-Rated Ally . | . . . Total Orders . | . . . Ally Attacks . | . . . Total Damage . | . . . Kills . | . . . Allies Corrupted . | . . . Allies Melted . | . . . Intel | -11 -10 -10 ------- Run | Scr Mat Min Robot Analysis Total 1 | . 1 . Derelict Logs Recovered . | . . . Drone Launches . | . . . Drone Recoveries . | . . . Exploration | -11 -10 -10 ------------- Run | Scr Mat Min Turns Passed 1297 | 95 909 293 Spaces Moved 1011 | 68 586 357 Core 378 | 34 . 344 Treads . | . . . Legs 633 | 34 586 13 Wheels . | . . . Hover . | . . . Flight . | . . . Fastest Speed 50 | 50 120 50 Average Speed 94 | 85 120 53 Slowest Speed 190 | 120 190 190 Overloaded Moves . | . . . Propulsion Burnouts . | . . . Robots Hopped . | . . . Cave-ins Triggered . | . . . Exploration Rate (%) 51 | 9 89 56 Regions Visited 2 Branch Regions 1 Pre-discovered Areas . | . . . Known Exits Taken 1 | . 1 . Unknown Exits Taken 1 | 1 . . Scrap Searched 1 | . . 1 Spaces Dug . | . . . Terrain Destroyed 61 | . 7 54 Melee . | . . . Projectile . | . . . AOE 61 | . 7 54 Terrain Rammed . | . . . Walls Destroyed . | . . . Machines Disabled . | . . . Actions | -11 -10 -10 --------- Run | Scr Mat Min Total 1214 | 93 697 424 Wait 44 | 4 18 22 Move 1009 | 67 585 357 Hop . | . . . Pick Up 28 | 10 12 6 Fast Attach 7 | . 6 1 Attach 13 | 6 2 5 Detach 1 | . . 1 Swap 11 | . 9 2 Drop 19 | . 15 4 Fire 81 | 6 49 26 Melee . | . . . Ram . | . . . Kick 1 | . 1 . Crush . | . . . Escape Stasis . | . . . Rewire . | . . . Trap . | . . . Miscellaneous . | . . . Route ------- -11/Scrapyard -10/Materials (discovered 4 exits: [*Mat x3] / *Min) -10/Mines (discovered 2 exits: [*Mat x2]) History --------- Turn | Location | Event 2 | -11/Scrapyard | Met Revision 17 48 | -11/Scrapyard | Discovered new exit (range 8) 96 | -11/Scrapyard | Entered Materials 309 | -10/Materials | Build established: Mutant 346 | -10/Materials | Discovered new exit (range 15) 499 | -10/Materials | Discovered new exit (range 16) 674 | -10/Materials | Identified exit to Mines 729 | -10/Materials | Discovered new exit (range 15) 760 | -10/Materials | Core integrity fell below 50% 1005 | -10/Materials | Entered Mines 1006 | -10/Mines | Assembled infested the area 1034 | -10/Mines | Discovered new exit (range 11) 1058 | -10/Mines | Core integrity fell below 20% 1071 | -10/Mines | Released all parts (5) 1094 | -10/Mines | Lost 3 parts (2n1w) 1109 | -10/Mines | Destroyed 10 combat bots 1112 | -10/Mines | Received a Rocket Launcher from a helpful Derelict 1221 | -10/Mines | Discovered new exit (range 8) 1298 | -10/Mines | Destroyed by G-34 Mercenary with Small Laser Last Messages --------------- 01143_ U-05 Engineer lays Concrete. 01144_ K-01 Serf collects debris. 01145_ U-05 Engineer lays Concrete. 01151_ Searching scrap... 01151_ Found Signal Interpreter. 01151_ Found Welding Torch. 01151_ Found Seismic Analyzer. 01151_ Found 31 Matter. 01152_ Acquired 3 matter. 01161_ A derelict is hurriedly installing traps. 01163_ Y6-6FU(g): "Hehe, this'll put a wrench in their mining defense operations..." 01163_ Y6-6FU(g) slips into the shadows. 01221_ EXIT=FOUND 01270_ U-05 Engineer builds a Wall. 01287_ U-05 Engineer lays Concrete. 01289_ G-47 Trooper suffers critical hit (Burn). 01289_ G-47 Trooper destroyed. 01295_ Structural Scanner destroyed. [Achievement: First Step to Greatness] Map ----- +----------------------------------------------------+ | ?????????????????????????????????????????????????? | | ?????????????????????????????????????????????????? | | ?????????????????????????????????????????????????? | | ?????????????????????????????????????????????????? | | ?????????????????????????????????????????????????? | | ?????????????????????????????????????????????????? | | ?????????????????????????????????????????????????? | | ?????????????????????????????????????????????????? | | ?????????????????????????????????????????????????? | | ?????????????????????????????????????????????????? | | ?????????????????????????????????????????????????? | | ?????????????????????????????????????????????????? | | ?????????????????????????????????????????????????? | | ?????????????????????????????????????????????????? | | ?????????????????###?????????????????????????????? | | ????????????????? ###?????####???????????????????? | | ????????????????? ###????####???????????????????? | | ?????????????????? %###???# ???????????????????? | | ##????????????????? ####?? ##???????????????????? | | ###????????????????? ##### ###??????????????????? | | ##?????????????????? ### ####?????????????????? | | ###??######????????? ###?????????????????? | | ###########?????????# g ###????????????????? | | ###### ##?????????##g* ####???????????????? | | ### ##?????????##!% ####??????????????? | | ##?????????## @ ###??????????????? | | ###?????????## ##??????????????? | | ### ###?????????### ##??????????????? | | ##### ###??#####??### ##??????????????? | | ?##### ##########?### ###??????????????? | | ???### ##### ###?## ####??????????????? | | ????### ### ##?## ####???????????????? | | ????### ##?### ###????????????????? | | ?????### ###?### ###?????????????????? | | ?????#### #######??## #####?????????????????? | | ??????##### ############ ####??????????????#???? | | ???????#### ###?######## ##??????????????? #???? | | ????####### ##??### ########???????? #???? | | ???######## ###?## #########?????? ##??? | | ###### ### ###### ## ######## ##?? | | ##### ##### " ####### ??? | | ### ! ?? | | #### ? | | #### ## # | | ??### ## ## ### ### ## | | ??#### ######]### ### ### | | ???########### #### ##### %] | | ????######??## #### ### = ##### ## # * | | ????????????## #### ###### ###%# | | ############## #### ########### ## #%## | +----------------------------------------------------+ Best States ------------- Heat Dissipation 25 Energy Generation 10 Energy Capacity 250 Matter Stores 300 Matter Capacity 300 Sight Range 16 Terrain Scan Range 16 Terrain Scan Density 85 Evasion (%) 55 Targeting Accuracy 6 Item Schematics ----------------- None Robot Schematics ------------------ None Fabricated ------------ Nothing Alien Tech Used ----------------- None Achievements -------------- Crack Shot Everything Is Under Control First Step to Greatness Challenges ------------ None Game ------ Seed AblativeWaveThrusters Manual? 0 Play Time 00:28:54 Cumulative 0.9 hours Start 2021.10.31 @ 02:28:56 End 2021.10.31 @ 02:57:58 Sessions 1 Manual Loads 0 Difficulty Rogue Special Mode None Game No. 2 Rogue 2 Adventurer 0 Explorer 0 Win Type - Total 0 Types 0/0/0/0/0/0/0/0/0 Lore% 3 Gallery% 3 Achievement% 6 Wizard Run 0 Options --------- ASCII 0 Keyboard 0 Movement Mouse Keybinds 0 Fullscreen 1 Font 18/SmallcapsGlow Map View 76x50 Tactical HUD 1 Map Filters NONE Filters NONE Steam 0 RUN: 440f4e6c-e668-4222-8d8c-eb2f152a86a8